fUST/lending_fUST_20251119
["ID","MTS","AMOUNT","RATE_DAILY","PERIOD"]
[394364876,1763497334641,-206.73428585,0.00016818,2]
[394364877,1763497336989,-257.1029938,0.00016818,2]
[394364878,1763497341157,-243.54353299,0.00016818,2]
[394364879,1763497345359,-500.0,0.00016818,2]
[394364880,1763497347085,-160.43527447,0.00016818,2]
[394364881,1763497348665,1000.0,0.00039655,30]
[394364882,1763497348992,1000.0,0.00039655,30]
[394364883,1763497349335,1081.764364,0.00039655,30]
[394364884,1763497350003,-381.9042425,0.00016818,2]
[394364885,1763497351706,-148.52944818,0.00016818,2]
[394364886,1763497351730,-170.26510481,0.00016973,2]
[394364887,1763497355249,-329.73489519,0.00016973,2]
[394364888,1763497355271,-81.43181455,0.00016988,2]
[394364889,1763497356981,164.21721063,0.00032,120]
[394364890,1763497358073,-152.3916461,0.00016988,2]
[394364891,1763497362126,-97.11252533,0.00016988,2]
[394364892,1763497362149,-103.12141768,0.00016988,2]
[394364893,1763497364366,5000.0,0.00016978,2]
[394364894,1763497367109,-46.87858232,0.00016988,2]
[394364895,1763497367131,-300.0,0.00016988,2]
[394364896,1763497367152,-93.7767365,0.00016989,2]
[394364897,1763497371980,-381.31846725,0.00016988,2]
[394364898,1763497374898,-392.70515437,0.00016978,2]
[394364899,1763497376407,-214.01584474,0.00016978,2]
[394364900,1763497378597,-558.56961997,0.00016978,2]
[394364901,1763497381625,-255.8699612,0.00016808,2]
[394364902,1763497383179,-561.75389923,0.00016808,2]
[394364903,1763497383203,-644.01680676,0.00016978,2]
[394364904,1763497384808,-669.75774501,0.00016978,2]
[394364905,1763497388765,-425.35151863,0.00016978,2]
[394364906,1763497389215,5000.0,0.00016808,2]
[394364907,1763497392703,-211.8912201,0.00016978,2]
[394364908,1763497394817,-206.48039651,0.00016978,2]
[394364909,1763497398258,-194.47980349,0.00016978,2]
[394364910,1763497401212,-241.33147702,0.00016978,2]
[394364911,1763497403242,-780.36190651,0.00016978,2]
[394364912,1763497406070,-194.47980349,0.00016978,2]
[394364913,1763497407658,-210.80121567,0.00016978,2]
[394364914,1763497407679,-21.74540445,0.00016988,2]
[394364915,1763497410630,-168.06380642,0.00016988,2]
[394364916,1763497413018,-1903.62025938,0.00016818,2]
[394364917,1763497415785,-234.03190321,0.00016818,2]
[394364918,1763497420711,-300.0,0.00016818,2]
[394364919,1763497422393,-368.04522985,0.00016818,2]
[394364920,1763497424722,-387.51183085,0.00016818,2]
[394364921,1763497426255,-356.96282307,0.00016818,2]
[394364922,1763497429145,-531.26706152,0.00016818,2]
[394364923,1763497430794,-351.01278781,0.00016818,2]
[394364924,1763497434293,-247.09279327,0.00016818,2]
[394364925,1763497436580,-320.45531104,0.00016818,2]
[394364926,1763497436602,-479.54642108,0.00016988,2]
[394364927,1763497440526,-149.3259008,0.00016988,2]
[394364928,1763497440551,-39.7111991,0.00016988,2]
[394364929,1763497442295,-150.0,0.00016989,2]
[394364930,1763497442321,-9.77523542,0.00016989,2]
[394364931,1763497446213,-300.0,0.00016988,2]
[394364932,1763497446234,-121.03950437,0.00016989,2]
[394364933,1763497447862,189.21003039,0.00032,120]
[394364934,1763497449151,-371.20125975,0.00016989,2]
[394364935,1763497450914,-157.78090848,0.00016989,2]
[394364936,1763497455311,-246.42635548,0.00016989,2]
[394364937,1763497455334,-53.57364452,0.00016989,2]
[394364938,1763497455463,5000.0,0.00016979,2]
[394364939,1763497458095,-263.27327639,0.00016989,2]
[394364940,1763497462781,-227.30974065,0.00016989,2]
[394364941,1763497464415,-189.5821077,0.00016989,2]
[394364942,1763497467283,-219.26868526,0.00016989,2]
[394364943,1763497470013,-46.99254548,0.00016989,2]
[394364944,1763497470034,-253.00745452,0.00016989,2]
[394364945,1763497471132,2405.95196251,0.00016979,2]
[394364946,1763497471783,-186.77430384,0.00016989,2]
[394364947,1763497473410,-263.39734293,0.00016989,2]
[394364948,1763497475900,160.5247746,0.00032,120]
[394364949,1763497476163,-296.82089871,0.00016989,2]
[394364950,1763497476185,-903.17910129,0.00016989,2]
[394364951,1763497476216,177.83846929,0.00032,120]
[394364952,1763497478969,2594.05803749,0.00016979,2]
[394364953,1763497478999,-171.83081564,0.00016979,2]
[394364954,1763497480596,-200.2,0.00016979,2]
[394364955,1763497483915,-172.12249522,0.00016979,2]
[394364956,1763497485417,-160.51832996,0.00016979,2]
[394364957,1763497487730,-300.0,0.00016809,2]
[394364958,1763497489532,-412.0120492,0.00016809,2]
[394364959,1763497492730,-84.04335551,0.00016809,2]
[394364960,1763497492752,-133.58050492,0.00016979,2]
[394364961,1763497494251,-382.90734105,0.00016979,2]
[394364962,1763497495146,1744.38190864,0.000165,2]
[394364963,1763497497610,-216.96010571,0.00016979,2]
[394364964,1763497499796,-265.76602723,0.00016979,2]
[394364965,1763497503926,-151.51062978,0.00016979,2]
[394364966,1763497506116,-550.545713,0.00016979,2]
[394364967,1763497506139,-300.0,0.00016987,2]
[394364968,1763497506161,-86.40524193,0.00016987,2]
[394364969,1763497508918,165.804047,0.00016175,2]
[394364970,1763497508989,349.96884072,0.00032,120]
[394364971,1763497510778,-213.59475807,0.00016987,2]
[394364972,1763497510801,-10.35787366,0.00016987,2]
[394364974,1763497513063,-354.67857351,0.00016987,2]
[394364976,1763497515733,-307.09728476,0.00016987,2]
[394364983,1763497536177,169.8126169,8.023e-05,2]
[394364989,1763497582255,-418.42110984,0.00016817,2]
[394364991,1763497598585,183.70623457,0.00032,120]
[394364992,1763497608717,195.64000348,0.00032,120]
[394364993,1763497611902,151.0,0.00016331,7]
[394364997,1763497645277,335.94469546,0.00039766,30]
[394364999,1763497659003,3780.5942089,0.0001598,2]
[394365002,1763497676419,164.21721063,0.00032,120]
[394365003,1763497684705,425.15770452,0.00039766,30]
[394365005,1763497688748,422.57605018,0.00010618,2]
[394365006,1763497690548,8986.85654821,0.000125,2]
[394365009,1763497699626,174.23154723,0.00039766,120]
[394365019,1763497708188,782.3326343,0.0002,120]
[394365021,1763497710714,198.39266591,0.00025,120]
[394365022,1763497710909,170.99265905,0.00039766,120]
[394365025,1763497712987,692.44707999,0.00032,120]
[394365028,1763497713885,1000.0,0.0001,2]
[394365029,1763497714866,268.06780851,0.00039766,120]
[394365031,1763497715625,1075.11969715,0.00032,120]
[394365032,1763497715770,1725.834079,0.0002,120]
[394365033,1763497716173,1002.65864316,0.0003,120]
[394365034,1763497716616,-219.91277287,0.00015,2]
[394365036,1763497718319,202.88772151,0.000295,120]
[394365037,1763497719540,157.679997,0.0003,120]
[394365039,1763497719832,-330.87114121,0.00015,2]
[394365040,1763497719870,163.82358452,0.00039766,120]
[394365042,1763497720417,1068.0,0.0003,120]
[394365044,1763497721025,525.37802079,0.0001,2]
[394365045,1763497721499,631.49858425,0.00039766,120]
[394365046,1763497721965,249.83689508,0.00039766,60]
[394365048,1763497723086,262.94179256,0.00039766,120]
[394365049,1763497723515,-192.09411889,0.0001485,2]
[394365050,1763497723987,161.3074632,0.00039767,20]
[394365051,1763497724514,49545.5411475,0.00039767,30]
[394365052,1763497726791,-333.36939357,0.0001485,2]
[394365053,1763497728875,-341.21210195,0.0001485,2]
[394365054,1763497731756,-249.28047151,0.0001485,2]
[394365055,1763497733516,-2090.94520086,0.0001485,2]
[394365056,1763497752142,-300.0,0.00014849,2]
[394365057,1763497752163,-4682.676622,0.0001485,2]
[394365058,1763497761902,189.2100304,0.00032,120]
[394365059,1763497794229,160.52477459,0.00032,120]
[394365060,1763497794262,177.83846928,0.00032,120]
[394365061,1763497797728,705.68,0.0001598,3]
[394365062,1763497808455,352.84,0.0001598,3]
[394365063,1763497819069,206.09,0.0001598,3]
[394365064,1763497824369,279.97507258,0.00032,120]
[394365065,1763497829824,618.29,0.0001598,3]
[394365106,1763497831902,-999.0,0.00014057,2]
[394365108,1763497831911,-2456.91620765,0.00014749,2]
[394365110,1763497831920,-300.0,0.00014849,2]
[394365112,1763497831928,-1200.0,0.00014849,2]
[394365114,1763497831938,-300.0,0.00014849,2]
[394365117,1763497831947,-12062.71106962,0.0001485,2]
[394365120,1763497831956,-150.0,0.00014925,2]
[394365122,1763497831965,-812.76901284,0.00015,2]
[394365124,1763497831976,-465.415,0.00015,2]
[394365126,1763497831987,-628.7701,0.00015,2]
[394365162,1763497837719,-9003.88907233,0.00015,2]
[394365164,1763497837776,-331.58388654,0.00015,2]
[394365165,1763497837787,-8709.86190669,0.00015,2]
[394365166,1763497837796,-190.381165,0.00015068,2]
[394365167,1763497837806,-500.0,0.00015145,2]
[394365168,1763497837815,-500.0,0.00015145,2]
[394365169,1763497837824,-500.0,0.00015145,2]
[394365170,1763497837833,-500.0,0.00015145,2]
[394365171,1763497837842,-610.0,0.00015145,2]
[394365172,1763497837851,-500.0,0.00015145,2]
[394365173,1763497837860,-500.0,0.00015145,2]
[394365174,1763497837868,-500.0,0.00015145,2]
[394365175,1763497837877,-500.0,0.00015145,2]
[394365176,1763497837886,-500.0,0.00015145,2]
[394365177,1763497837895,-500.0,0.00015145,2]
[394365178,1763497837909,-500.0,0.00015145,2]
[394365179,1763497837918,-500.0,0.00015145,2]
[394365180,1763497837927,-500.0,0.00015145,2]
[394365181,1763497837935,-500.0,0.00015145,2]
[394365182,1763497837944,-500.0,0.00015145,2]
[394365183,1763497837953,-500.0,0.00015145,2]
[394365184,1763497837962,-500.0,0.00015145,2]
[394365185,1763497837971,-500.0,0.00015145,2]
[394365186,1763497837980,-500.0,0.00015145,2]
[394365187,1763497837988,-500.0,0.00015145,2]
[394365188,1763497837998,-500.0,0.00015145,2]
[394365189,1763497838007,-650.76781456,0.00015145,2]
[394365190,1763497838015,-500.0,0.00015145,2]
[394365191,1763497838024,-500.0,0.00015145,2]
[394365192,1763497838033,-500.0,0.00015145,2]
[394365193,1763497838122,-615.89686568,0.00015145,2]
[394365194,1763497838133,-347.31180771,0.00015145,2]
[394365195,1763497838142,-500.0,0.00015145,2]
[394365196,1763497838152,-500.0,0.00015145,2]
[394365197,1763497838161,-500.0,0.00015145,2]
[394365198,1763497838170,-500.0,0.00015145,2]
[394365199,1763497838179,-500.0,0.00015145,2]
[394365200,1763497838189,-300.0,0.00015146,2]
[394365201,1763497838198,-300.0,0.00015146,2]
[394365202,1763497838207,-300.0,0.00015146,2]
[394365203,1763497838216,-300.0,0.00015146,2]
[394365204,1763497838225,-300.0,0.00015146,2]
[394365205,1763497838234,-300.0,0.00015146,2]
[394365206,1763497838243,-300.0,0.00015146,2]
[394365207,1763497838252,-300.0,0.00015146,2]
[394365208,1763497838261,-300.0,0.00015146,2]
[394365209,1763497838270,-300.0,0.00015146,2]
[394365210,1763497838280,-300.0,0.00015146,2]
[394365211,1763497838298,-300.0,0.00015146,2]
[394365212,1763497838307,-300.0,0.00015146,2]
[394365213,1763497838316,-300.0,0.00015146,2]
[394365214,1763497838325,-300.0,0.00015146,2]
[394365215,1763497838334,-38855.72404645,0.00015146,2]
[394365216,1763497838343,-600.0,0.00015448,2]
[394365217,1763497838352,-263.70296572,0.00015601,2]
[394365218,1763497838361,-241.98445979,0.00015777,2]
[394365219,1763497838372,-209.40501382,0.00015973,2]
[394365220,1763497838384,-5306.1553278,0.0001598,2]
[394365221,1763497838393,-507.1710731,0.00015989,2]
[394365222,1763497838402,-500.0,0.00015989,2]
[394365223,1763497838412,-100000.0,0.0001599,2]
[394365224,1763497838421,-420.0,0.00016254,2]
[394365225,1763497838430,-500.0,0.00016438,2]
[394365226,1763497838439,-500.0,0.00016438,2]
[394365227,1763497838450,-500.0,0.00016438,2]
[394365228,1763497838459,-183.50024046,0.00016438,2]
[394365229,1763497838468,-500.0,0.00016438,2]
[394365230,1763497838477,-500.0,0.00016438,2]
[394365231,1763497838486,-500.0,0.00016438,2]
[394365232,1763497838495,-500.0,0.00016438,2]
[394365233,1763497838504,-500.0,0.00016438,2]
[394365234,1763497838513,-500.0,0.00016438,2]
[394365235,1763497838523,-500.0,0.00016438,2]
[394365236,1763497838532,-500.0,0.00016438,2]
[394365237,1763497838541,-500.0,0.00016438,2]
[394365238,1763497838550,-348.07171611,0.00016438,2]
[394365239,1763497838559,-500.0,0.00016438,2]
[394365240,1763497838567,-500.0,0.00016438,2]
[394365241,1763497838576,-500.0,0.00016438,2]
[394365242,1763497838585,-500.0,0.00016438,2]
[394365243,1763497838594,-500.0,0.00016438,2]
[394365244,1763497838603,-500.0,0.00016438,2]
[394365245,1763497838611,-500.0,0.00016438,2]
[394365246,1763497838620,-500.0,0.00016438,2]
[394365247,1763497838630,-500.0,0.00016438,2]
[394365248,1763497838639,-500.0,0.00016438,2]
[394365249,1763497838647,-500.0,0.00016438,2]
[394365250,1763497838656,-500.0,0.00016438,2]
[394365251,1763497838665,-500.0,0.00016438,2]
[394365252,1763497838674,-500.0,0.00016438,2]
[394365253,1763497838683,-500.0,0.00016438,2]
[394365254,1763497838692,-500.0,0.00016438,2]
[394365255,1763497838702,-500.0,0.00016438,2]
[394365256,1763497838711,-500.0,0.00016438,2]
[394365257,1763497838720,-500.0,0.00016438,2]
[394365258,1763497838729,-206.26515719,0.00016438,2]
[394365259,1763497838739,-500.0,0.00016438,2]
[394365260,1763497838748,-500.0,0.00016438,2]
[394365261,1763497838757,-500.0,0.00016438,2]
[394365262,1763497838766,-500.0,0.00016438,2]
[394365263,1763497838775,-500.0,0.00016438,2]
[394365264,1763497838783,-1200.0,0.00016872,2]
[394365265,1763497838792,-501.07386946,0.00016873,2]
[394365266,1763497838802,-500.0,0.00016873,2]
[394365267,1763497838811,-500.0,0.00016873,2]
[394365268,1763497838820,-501.26527799,0.00016873,2]
[394365269,1763497838829,-502.77937304,0.00016873,2]
[394365270,1763497838838,-500.0,0.00016873,2]
[394365271,1763497838847,-500.0,0.00016873,2]
[394365272,1763497838856,-174.44092966,0.00016873,2]
[394365273,1763497838865,-3593.65,0.00016879,3]
[394365274,1763497838874,-1873.48,0.00016879,3]
[394365275,1763497838883,-1411.37,0.00016879,3]
[394365276,1763497838892,-178353.72286064,0.00016889,2]
[394365277,1763497838904,-8921.39536417,0.00016889,2]
[394365278,1763497838919,-702724.88177519,0.00016889,2]
[394365279,1763497838928,-177.0,0.00016925,2]
[394365280,1763497838937,-1936.7411342,0.00016929,2]
[394365281,1763497838946,-1346.95344367,0.00016946,2]
[394365282,1763497838955,-500.0,0.00016973,2]
[394365283,1763497838964,-500.0,0.00016973,2]
[394365284,1763497838974,-178.47079806,0.00016973,2]
[394365285,1763497838983,-500.9277856,0.00016973,2]
[394365286,1763497838992,-500.0,0.00016973,2]
[394365287,1763497839001,-7136.21,0.0001698,3]
[394365288,1763497839011,-400.77541225,0.0001698,3]
[394365289,1763497839020,-500.0,0.00016989,2]
[394365290,1763497839029,-289.93229305,0.00016989,2]
[394365291,1763497839038,-500.0,0.00016989,2]
[394365292,1763497839047,-720.0,0.00016993,2]
[394365293,1763497839055,-487.288,0.00017217,2]
[394365294,1763497839065,-500.0,0.00017263,2]
[394365295,1763497839074,-180.57014505,0.00017273,2]
[394365296,1763497839084,-151.0,0.00017309,2]
[394365297,1763497839093,-155.69944327,0.00017309,2]
[394365298,1763497839102,-1000.0,0.00017317,2]
[394365299,1763497839111,-685.46732157,0.00017317,2]
[394365300,1763497839120,-203.21851301,0.00017318,2]
[394365301,1763497839129,-500.0,0.00017318,2]
[394365302,1763497839138,-295.20840448,0.00017318,2]
[394365303,1763497839147,-500.0,0.00017318,2]
[394365304,1763497839156,-513.55094213,0.00017318,2]
[394365305,1763497839166,-1411.36,0.0001735,3]
[394365306,1763497839175,-705.68,0.0001735,3]
[394365307,1763497839185,-412.18,0.0001735,3]
[394365308,1763497839194,-500.96930845,0.00017373,2]
[394365309,1763497839203,-164.6990424,0.00017373,2]
[394365310,1763497839212,-500.0,0.00017373,2]
[394365311,1763497839222,-500.0,0.00017373,2]
[394365312,1763497839231,-501.11157361,0.00017373,2]
[394365313,1763497839240,-555.81629099,0.00017373,2]
[394365314,1763497839249,-500.0,0.00017373,2]
[394365315,1763497839258,-500.0,0.00017373,2]
[394365316,1763497839266,-158.8899792,0.00017373,2]
[394365317,1763497839275,-500.0,0.00017373,2]
[394365318,1763497839284,-500.0,0.00017373,2]
[394365319,1763497839293,-1000.0,0.00017421,2]
[394365320,1763497839303,-1000.0,0.00017421,2]
[394365321,1763497839313,-503.89883736,0.00017473,2]
[394365322,1763497839322,-1000.0,0.00017521,2]
[394365323,1763497839331,-1000.0,0.00017521,2]
[394365324,1763497839339,-1017.52864433,0.00017521,2]
[394365325,1763497839348,-500.0,0.00017537,2]
[394365326,1763497839357,-357.81430756,0.00017539,2]
[394365327,1763497839366,-304.24371817,0.00017539,2]
[394365328,1763497839379,-199.87394971,0.00017563,2]
[394365329,1763497839451,-2123.64349036,0.000176,2]
[394365330,1763497839461,-587.0,0.00017792,2]
[394365331,1763497839470,-500.0,0.00017881,2]
[394365332,1763497839480,-500.0,0.00017881,2]
[394365333,1763497839488,-151.0,0.00017881,2]
[394365334,1763497839497,-500.0,0.00017908,2]
[394365335,1763497839507,-500.0,0.00017908,2]
[394365336,1763497839516,-151.0,0.00017908,2]
[394365337,1763497839524,-1000.0,0.00017921,2]
[394365338,1763497839534,-1000.0,0.00017921,2]
[394365339,1763497839544,-1000.0,0.00017921,2]
[394365340,1763497839555,-1000.0,0.00017921,2]
[394365342,1763497839564,-1075.30915802,0.00017921,2]
[394365343,1763497839573,-500.0,0.00017936,2]
[394365345,1763497839582,-500.0,0.00017936,2]
[394365347,1763497839591,-151.0,0.00017936,2]
[394365349,1763497839599,-500.0,0.00017963,2]
[394365351,1763497839608,-500.0,0.00017963,2]
[394365353,1763497839617,-151.0,0.00017963,2]
[394365355,1763497839626,-1500.0,0.00017968,2]
[394365357,1763497839635,-1500.0,0.00017968,2]
[394365359,1763497839645,-500.0,0.00017991,2]
[394365361,1763497839654,-500.0,0.00017991,2]
[394365362,1763497839663,-245.0,0.00017991,2]
[394365363,1763497839672,-302.0,0.00018,2]
[394365364,1763497839681,-152.73519095,0.00018005,7]
[394365365,1763497839690,-500.0,0.00018018,2]
[394365366,1763497839699,-500.0,0.00018018,2]
[394365367,1763497839708,-500.0,0.00018045,2]
[394365368,1763497839717,-500.0,0.00018045,2]
[394365369,1763497839726,-1105.34954308,0.00018068,2]
[394365370,1763497839735,-1500.0,0.00018068,2]
[394365371,1763497839744,-500.0,0.00018073,2]
[394365372,1763497839753,-500.0,0.00018073,2]
[394365373,1763497839762,-500.0,0.000181,2]
[394365374,1763497839772,-500.0,0.000181,2]
[394365375,1763497839781,-160.0,0.00018108,2]
[394365376,1763497839789,-500.0,0.00018128,2]
[394365377,1763497839799,-500.0,0.00018128,2]
[394365378,1763497839807,-500.0,0.00018155,2]
[394365379,1763497839816,-500.0,0.00018155,2]
[394365380,1763497839825,-500.0,0.00018182,2]
[394365381,1763497839834,-251.91812557,0.00018182,2]
[394365382,1763497839842,-500.0,0.0001821,2]
[394365383,1763497839851,-196.02911594,0.00018226,2]
[394365384,1763497839860,-500.0,0.00018237,2]
[394365385,1763497839869,-7187.3,0.00018249,3]
[394365386,1763497839877,-3746.96,0.00018249,3]
[394365387,1763497839889,-2822.74,0.00018249,3]
[394365388,1763497839897,-500.0,0.00018265,2]
[394365389,1763497839906,-500.0,0.00018292,2]
[394365390,1763497839915,-500.0,0.00018319,2]
[394365391,1763497839924,-500.0,0.00018347,2]
[394365392,1763497839933,-577.92,0.0001835,3]
[394365393,1763497839942,-14272.42,0.0001835,3]
[394365394,1763497839950,-252.0,0.00018374,2]
[394365395,1763497839959,-1000.0,0.00018429,2]
[394365396,1763497839968,-1000.0,0.00018429,2]
[394365397,1763497839977,-1000.0,0.00018429,2]
[394365398,1763497839986,-1000.0,0.00018429,2]
[394365399,1763497839995,-1000.0,0.00018429,2]
[394365400,1763497840004,-1000.0,0.00018429,2]
[394365401,1763497840013,-1000.0,0.00018429,2]
[394365402,1763497840022,-1000.0,0.00018429,2]
[394365403,1763497840032,-1000.0,0.00018429,2]
[394365404,1763497840040,-500.0,0.00018429,2]
[394365405,1763497840049,-1000.0,0.00018429,2]
[394365406,1763497840058,-500.0,0.00018429,2]
[394365407,1763497840067,-845.54684014,0.00018429,2]
[394365408,1763497840076,-500.0,0.00018429,2]
[394365409,1763497840085,-151.0,0.00018429,2]
[394365410,1763497840094,-500.0,0.00018429,2]
[394365411,1763497840102,-151.0,0.00018429,2]
[394365412,1763497840111,-500.0,0.00018429,2]
[394365413,1763497840120,-166.24267678,0.00018429,2]
[394365414,1763497840129,-500.0,0.00018429,2]
[394365415,1763497840139,-500.0,0.00018429,2]
[394365416,1763497840148,-500.0,0.00018429,2]
[394365417,1763497840157,-500.0,0.00018429,2]
[394365418,1763497840166,-500.0,0.00018429,2]
[394365419,1763497840175,-250.0,0.00018429,2]
[394365420,1763497840185,-250.0,0.00018429,2]
[394365421,1763497840194,-500.0,0.00018429,2]
[394365422,1763497840203,-250.0,0.00018429,2]
[394365423,1763497840211,-250.0,0.00018429,2]
[394365424,1763497840220,-250.0,0.00018429,2]
[394365425,1763497840229,-250.0,0.00018429,2]
[394365426,1763497840237,-250.0,0.00018429,2]
[394365427,1763497840246,-250.0,0.00018429,2]
[394365428,1763497840254,-13867.83952595,0.00018429,2]
[394365429,1763497840263,-250.0,0.00018429,2]
[394365430,1763497840271,-250.0,0.00018429,2]
[394365431,1763497840280,-250.0,0.00018429,2]
[394365432,1763497840289,-830.0,0.0001843,2]
[394365433,1763497840298,-1000.0,0.00018468,2]
[394365434,1763497840307,-500.0,0.00018468,2]
[394365435,1763497840315,-502.71372122,0.00018468,2]
[394365436,1763497840324,-1500.0,0.00018468,2]
[394365437,1763497840333,-2000.0,0.00018516,2]
[394365438,1763497840342,-1166.12373881,0.00018516,2]
[394365439,1763497840351,-151.0,0.00018616,2]
[394365440,1763497840359,-151.0,0.00018616,2]
[394365441,1763497840368,-199.514952,0.00018616,2]
[394365442,1763497840382,-151.0,0.00018616,2]
[394365443,1763497840391,-2000.0,0.00018616,2]
[394365444,1763497840400,-260.0,0.00018656,2]
[394365445,1763497840408,-1936.7411342,0.00018659,2]
[394365446,1763497840418,-864.0,0.00018692,2]
[394365447,1763497840427,-799.49579882,0.00018897,2]
[394365448,1763497840435,-204.0,0.00018925,2]
[394365449,1763497840445,-14380.94958841,0.00018977,2]
[394365450,1763497840454,-2000.0,0.00019016,2]
[394365451,1763497840463,-2500.0,0.00019064,2]
[394365452,1763497840472,-2500.0,0.00019164,2]
[394365453,1763497840481,-360.0,0.00019204,2]
[394365454,1763497840490,-784.11646378,0.00019235,2]
[394365455,1763497840498,-823.0,0.00019475,2]
[394365456,1763497840508,-8069.40281615,0.00019525,2]
[394365457,1763497840517,-2500.0,0.00019564,2]
[394365458,1763497840525,-3000.0,0.00019612,2]
[394365459,1763497840535,-1188.67068666,0.00019712,2]
[394365460,1763497840543,-460.0,0.00019752,2]
[394365461,1763497840552,-7747.0,0.000199,2]
[394365462,1763497840561,-725.66947656,0.00019986,2]
[394365463,1763497840570,-1576.0,0.0002,2]
[394365464,1763497840579,-625.0,0.0002,2]
[394365465,1763497840588,-5129.0,0.0002,2]
[394365466,1763497840654,-2000.0,0.0002,7]
[394365467,1763497840663,-8326.0,0.0002,2]
[394365468,1763497840672,-1993.25839247,0.00020112,2]
[394365469,1763497840681,-1000.0,0.0002016,2]
[394365470,1763497840689,-708.701374,0.00020187,2]
[394365471,1763497840698,-1798.86554735,0.00020232,2]
[394365472,1763497840707,-1764.26204349,0.00020245,2]
[394365473,1763497840716,-560.0,0.000203,2]
[394365474,1763497840725,-1936.7411342,0.00020389,2]
[394365475,1763497840734,-151.0,0.00020548,7]
[394365476,1763497840743,-1000.0,0.00020561,2]
[394365477,1763497840751,-469.00788416,0.00020712,2]
[394365478,1763497840761,-306.25328312,0.00020842,2]
[394365479,1763497840770,-660.0,0.00020848,2]
[394365480,1763497840778,-231.0,0.00020925,2]
[394365481,1763497840787,-3136.4658551,0.00021255,2]
[394365482,1763497840796,-1152.0,0.00021318,2]
[394365483,1763497840805,-760.0,0.00021396,2]
[394365484,1763497840814,-3197.9831953,0.00021565,2]
[394365485,1763497840825,-1306.20505781,0.0002181,2]
[394365486,1763497840833,-2000.0,0.00021875,7]
[394365487,1763497840842,-150.0,0.00021918,7]
[394365488,1763497840851,-860.0,0.00021944,2]
[394365489,1763497840860,-5468.87,0.00022,14]
[394365490,1763497840868,-74257.06,0.00022,2]
[394365491,1763497840877,-1936.7411342,0.00022119,2]
[394365492,1763497840887,-551.11425526,0.00022192,7]
[394365493,1763497840897,-4900.72789859,0.00022264,2]
[394365494,1763497840906,-500.0,0.00022273,2]
[394365495,1763497840915,-500.0,0.00022273,2]
[394365496,1763497840924,-500.0,0.00022273,2]
[394365497,1763497840933,-500.0,0.00022273,2]
[394365498,1763497840942,-504.94382083,0.00022273,2]
[394365499,1763497840951,-2028.1,0.000223,7]
[394365500,1763497840961,-316.889578,0.000223,7]
[394365501,1763497840971,-316.889578,0.000223,7]
[394365502,1763497840980,-316.889578,0.000223,7]
[394365503,1763497840989,-316.889578,0.000223,7]
[394365504,1763497840998,-229.50305475,0.000223,7]
[394365505,1763497841007,-151.0,0.000223,7]
[394365506,1763497841017,-151.0,0.000223,7]
[394365507,1763497841026,-151.0,0.000223,7]
[394365508,1763497841036,-151.0,0.000223,7]
[394365509,1763497841044,-872.96969,0.000223,2]
[394365510,1763497841054,-872.96969,0.000223,2]
[394365511,1763497841063,-872.96969,0.000223,2]
[394365512,1763497841071,-872.96969,0.000223,2]
[394365513,1763497841080,-151.0,0.000223,7]
[394365514,1763497841088,-151.0,0.000223,7]
[394365515,1763497841098,-151.0,0.000223,7]